fUSD/lending_fUSD_20240811
["ID","MTS","AMOUNT","RATE_DAILY","PERIOD"]
[334627335,1723362644197,-150.0,0.00023973,2]
[334627337,1723362644207,-2947.05743262,0.00023977,2]
[334627339,1723362644216,-636985.72205282,0.0002398,2]
[334627341,1723362644225,-1000.0,0.00023999,6]
[334627343,1723362644235,-1000.0,0.00023999,7]
[334627345,1723362644245,-1000.0,0.00023999,5]
[334627347,1723362644254,-103804.57984404,0.00024,5]
[334627349,1723362644263,-738.16876279,0.00024,2]
[334627351,1723362644274,-2027.89,0.00024,2]
[334627353,1723362644283,-1839.98613845,0.00024,25]
[334627354,1723362644292,-7200.0,0.00024,2]
[334627356,1723362644301,-175.0,0.00024,2]
[334627358,1723362644310,-56365.03101734,0.00024008,2]
[334627360,1723362644320,-1241.28848283,0.00024063,10]
[334627362,1723362644329,-117510.29666475,0.00024064,2]
[334627364,1723362644338,-3886.41916698,0.000242,2]
[334627366,1723362644347,-993.64315216,0.00024205,2]
[334627368,1723362644358,-150.0,0.00024225,2]
[334627370,1723362644367,-399.92248283,0.00024277,2]
[334627372,1723362644376,-856.63,0.000243,7]
[334627374,1723362644385,-856.62,0.000243,7]
[334627375,1723362644394,-3435.36583033,0.0002438,18]
[334627377,1723362644405,-1500.0,0.000244,2]
[334627378,1723362644415,-4400.0,0.000244,8]
[334627379,1723362644425,-1613.0,0.00024405,2]
[334627380,1723362644435,-302.61735181,0.00024406,2]
[334627381,1723362644444,-302.61735181,0.00024408,2]
[334627382,1723362644453,-242.35102631,0.00024411,2]
[334627383,1723362644462,-302.61735181,0.00024415,2]
[334627384,1723362644471,-242.35102631,0.00024417,2]
[334627385,1723362644480,-242.35102631,0.00024423,2]
[334627386,1723362644489,-242.35102631,0.00024424,2]
[334627387,1723362644498,-242.35102631,0.00024427,2]
[334627388,1723362644507,-242.35102631,0.00024432,2]
[334627389,1723362644516,-302.61735181,0.00024437,2]
[334627390,1723362644525,-302.61735181,0.00024449,2]
[334627391,1723362644534,-302.61735181,0.00024453,2]
[334627392,1723362644543,-242.35102631,0.0002446,2]
[334627394,1723362644552,-242.35102631,0.00024473,2]
[334627396,1723362644561,-302.61735181,0.00024482,2]
[334627398,1723362644570,-302.61735181,0.00024487,2]
[334627399,1723362644580,-2621.01812238,0.00024489,14]
[334627401,1723362644590,-2947.05743262,0.00024497,2]
[334627403,1723362644599,-1031.76459501,0.00024499,10]
[334627405,1723362644610,-31046.98074608,0.000245,2]
[334627407,1723362644619,-359858.04,0.000245,5]
[334627409,1723362644629,-3222.49587051,0.000245,2]
[334627411,1723362644639,-3000.0,0.000245,2]
[334627412,1723362644649,-4400.0,0.000245,8]
[334627414,1723362644658,-1202.68041491,0.000245,2]
[334627416,1723362644667,-928.22864688,0.00024557,2]
[334627418,1723362644677,-11949.0,0.000246,2]
[334627420,1723362644687,-4400.0,0.000246,8]
[334627422,1723362644697,-206637.979988,0.00024657,8]
[334627425,1723362644707,-3190.708714,0.00024657,8]
[334627427,1723362644716,-2693.962681,0.00024657,8]
[334627429,1723362644727,-366.924028,0.00024657,8]
[334627431,1723362644736,-110030.791132,0.00024657,8]
[334627433,1723362644746,-64901.615487,0.00024657,8]
[334627435,1723362644755,-501.52613337,0.00024657,8]
[334627437,1723362644764,-500.0,0.00024657,8]
[334627438,1723362644773,-500.0,0.00024657,8]
[334627440,1723362644783,-200.40134662,0.00024657,8]
[334627442,1723362644792,-500.0,0.00024657,8]
[334627444,1723362644802,-237.63284791,0.00024657,8]
[334627446,1723362644811,-1000.0,0.00024657,2]
[334627448,1723362644821,-183.3550224,0.00024657,8]
[334627450,1723362644831,-510.63,0.00024657,8]
[334627452,1723362644842,-500.0,0.00024657,8]
[334627454,1723362644852,-500.0,0.00024657,8]
[334627456,1723362644861,-500.0,0.00024657,8]
[334627458,1723362644871,-500.0,0.00024657,8]
[334627460,1723362644880,-500.0,0.00024657,8]
[334627461,1723362644889,-500.0,0.00024657,8]
[334627463,1723362644898,-500.0,0.00024657,8]
[334627465,1723362644908,-500.0,0.00024657,8]
[334627467,1723362644917,-500.0,0.00024657,8]
[334627469,1723362644927,-500.0,0.00024657,8]
[334627471,1723362644937,-500.0,0.00024657,8]
[334627473,1723362644947,-403.81034333,0.00024657,8]
[334627475,1723362644956,-507.76105338,0.00024657,8]
[334627477,1723362644966,-796.25,0.00024657,8]
[334627479,1723362644975,-500.0,0.00024657,8]
[334627481,1723362644986,-500.0,0.00024657,2]
[334627483,1723362644996,-500.0,0.00024657,8]
[334627485,1723362645006,-500.0,0.00024657,2]
[334627487,1723362645015,-500.0,0.00024657,8]
[334627489,1723362645024,-646.04763629,0.00024657,2]
[334627491,1723362645034,-500.0,0.00024657,2]
[334627493,1723362645044,-500.0,0.00024657,2]
[334627495,1723362645055,-500.0,0.00024657,8]
[334627497,1723362645065,-500.0,0.00024657,8]
[334627499,1723362645074,-2000.0,0.00024657,8]
[334627501,1723362645083,-500.0,0.00024657,2]
[334627503,1723362645093,-537.64972474,0.00024657,8]
[334627505,1723362645104,-198.57034411,0.00024657,8]
[334627507,1723362645113,-500.0,0.00024657,8]
[334627509,1723362645123,-500.0,0.00024657,8]
[334627511,1723362645132,-500.0,0.00024657,8]
[334627513,1723362645142,-500.0,0.00024657,8]
[334627515,1723362645151,-503.51275758,0.00024657,8]
[334627517,1723362645160,-606.28304503,0.00024657,2]
[334627519,1723362645170,-500.0,0.00024657,8]
[334627521,1723362645179,-502.66448655,0.00024657,8]
[334627523,1723362645193,-502.5325002,0.00024657,8]
[334627525,1723362645202,-503.00938821,0.00024657,8]
[334627527,1723362645211,-500.0,0.00024657,8]
[334627543,1723362645357,-603.97687073,0.00024657,8]
[334627545,1723362645368,-500.0,0.00024657,8]
[334627547,1723362645378,-503.85648229,0.00024657,8]
[334627549,1723362645387,-503.41617626,0.00024657,8]
[334627551,1723362645397,-500.0,0.00024657,8]
[334627554,1723362645406,-498.57266442,0.00024657,8]
[334627557,1723362645415,-505.88838393,0.00024657,8]
[334627560,1723362645425,-501.16140456,0.00024657,8]
[334627563,1723362645434,-500.0,0.00024657,8]
[334627566,1723362645443,-500.0,0.00024657,8]
[334627568,1723362645453,-502.961147,0.00024657,8]
[334627570,1723362645462,-501.82632357,0.00024657,8]
[334627572,1723362645471,-500.0,0.00024657,8]
[334627574,1723362645481,-20000.0,0.00024657,2]
[334627576,1723362645491,-502.18456309,0.00024657,8]
[334627579,1723362645500,-500.0,0.00024657,8]
[334627581,1723362645509,-500.0,0.00024657,8]
[334627583,1723362645518,-503.58870239,0.00024657,8]
[334627585,1723362645528,-500.0,0.00024657,8]
[334627587,1723362645537,-1757.89,0.00024657,8]
[334627589,1723362645546,-500.0,0.00024657,8]
[334627591,1723362645556,-501.42370967,0.00024657,8]
[334627593,1723362645565,-500.0,0.00024657,8]
[334627595,1723362645575,-502.0109455,0.00024657,8]
[334627597,1723362645584,-500.0,0.00024657,8]
[334627599,1723362645594,-503.23810985,0.00024657,8]
[334627601,1723362645603,-197.55705945,0.00024657,8]
[334627603,1723362645612,-503.4654619,0.00024657,8]
[334627605,1723362645622,-498.5200659,0.00024657,8]
[334627607,1723362645631,-498.43196298,0.00024657,8]
[334627609,1723362645640,-500.0,0.00024657,8]
[334627611,1723362645650,-502.51389197,0.00024657,8]
[334627613,1723362645659,-503.87465815,0.00024657,8]
[334627615,1723362645669,-500.0,0.00024657,8]
[334627617,1723362645678,-503.94699078,0.00024657,8]
[334627619,1723362645688,-515.95518084,0.00024657,8]
[334627621,1723362645697,-501.30123481,0.00024657,8]
[334627622,1723362645708,-500.0,0.00024657,8]
[334627624,1723362645718,-500.0,0.00024657,8]
[334627626,1723362645727,-503.63404455,0.00024657,8]
[334627628,1723362645737,-500.0,0.00024657,8]
[334627630,1723362645746,-498.43854754,0.00024657,8]
[334627632,1723362645756,-501.41828691,0.00024657,8]
[334627634,1723362645766,-500.0,0.00024657,8]
[334627636,1723362645775,-502.21796838,0.00024657,8]
[334627638,1723362645785,-502.78551116,0.00024657,8]
[334627640,1723362645795,-500.0,0.00024657,8]
[334627642,1723362645804,-553.85052655,0.00024657,8]
[334627644,1723362645814,-500.0,0.00024657,8]
[334627646,1723362645823,-500.0,0.00024657,8]
[334627648,1723362645833,-608.37430183,0.00024657,8]
[334627650,1723362645842,-500.95631,0.00024657,8]
[334627652,1723362645852,-593.48763204,0.00024657,8]
[334627654,1723362645862,-500.0,0.00024657,8]
[334627656,1723362645871,-522.53279795,0.00024657,8]
[334627658,1723362645882,-501.61554949,0.00024657,8]
[334627660,1723362645891,-500.0,0.00024657,8]
[334627662,1723362645901,-502.55463412,0.00024657,8]
[334627664,1723362645911,-500.0,0.00024657,8]
[334627666,1723362645920,-502.1223662,0.00024657,8]
[334627668,1723362645930,-503.1405871,0.00024657,8]
[334627670,1723362645940,-502.96156835,0.00024657,8]
[334627673,1723362645950,-500.0,0.00024657,8]
[334627675,1723362645959,-225.26826779,0.00024657,8]
[334627677,1723362645969,-311.60177533,0.00024657,8]
[334627679,1723362645979,-500.0,0.00024657,8]
[334627681,1723362645988,-500.0,0.00024657,8]
[334627683,1723362645997,-523.35170696,0.00024657,8]
[334627685,1723362646006,-532.84768021,0.00024657,8]
[334627687,1723362646016,-500.0,0.00024657,8]
[334627689,1723362646025,-501.44702779,0.00024657,8]
[334627690,1723362646034,-539.9148329,0.00024657,8]
[334627692,1723362646043,-500.0,0.00024657,8]
[334627695,1723362646053,-547.85054438,0.00024657,8]
[334627697,1723362646062,-500.0,0.00024657,8]
[334627698,1723362646071,-500.0,0.00024657,8]
[334627700,1723362646081,-500.0,0.00024657,8]
[334627702,1723362646090,-1290.93,0.00024657,8]
[334627704,1723362646099,-500.0,0.00024657,8]
[334627706,1723362646108,-500.0,0.00024657,8]
[334627708,1723362646118,-500.0,0.00024657,8]
[334627710,1723362646127,-500.0,0.00024657,8]
[334627712,1723362646137,-2857.13,0.00024657,8]
[334627714,1723362646146,-500.0,0.00024657,8]
[334627716,1723362646155,-293.30117077,0.00024657,8]
[334627718,1723362646164,-500.0,0.00024657,8]
[334627720,1723362646174,-500.0,0.00024657,8]
[334627722,1723362646184,-544.35116944,0.00024657,8]
[334627724,1723362646197,-500.0,0.00024657,8]
[334627726,1723362646207,-155.87599868,0.00024657,8]
[334627728,1723362646216,-505.6851732,0.00024657,8]
[334627730,1723362646225,-606.8660686,0.00024657,8]
[334627732,1723362646234,-500.0,0.00024657,2]
[334627734,1723362646243,-538.15847433,0.00024657,8]
[334627736,1723362646252,-538.91125095,0.00024657,8]
[334627738,1723362646263,-500.0,0.00024657,8]
[334627741,1723362646273,-542.76954171,0.00024657,8]
[334627743,1723362646283,-500.0,0.00024657,8]
[334627745,1723362646292,-500.0,0.00024657,8]
[334627747,1723362646301,-500.0,0.00024657,8]
[334627748,1723362646311,-500.0,0.00024657,8]
[334627750,1723362646320,-500.0,0.00024657,8]
[334627752,1723362646329,-500.0,0.00024657,8]
[334627754,1723362646338,-513.28412836,0.00024657,8]
[334627756,1723362646347,-500.0,0.00024657,8]
[334627758,1723362646356,-522.1835563,0.00024657,8]
[334627760,1723362646365,-1670.28,0.00024657,8]
[334627761,1723362646374,-500.0,0.00024657,8]
[334627763,1723362646384,-500.0,0.00024657,8]
[334627765,1723362646393,-500.0,0.00024657,8]
[334627767,1723362646402,-500.0,0.00024657,8]
[334627769,1723362646412,-500.0,0.00024657,8]
[334627771,1723362646421,-500.0,0.00024657,8]
[334627773,1723362646430,-500.0,0.00024657,8]
[334627774,1723362646440,-500.0,0.00024657,8]
[334627776,1723362646449,-500.0,0.00024657,8]
[334627778,1723362646458,-153.48085799,0.00024657,8]
[334627780,1723362646467,-500.0,0.00024657,8]
[334627782,1723362646476,-500.0,0.00024657,8]
[334627784,1723362646485,-500.0,0.00024657,8]
[334627786,1723362646494,-500.0,0.00024657,8]
[334627788,1723362646504,-500.0,0.00024657,8]
[334627789,1723362646512,-500.0,0.00024657,8]
[334627791,1723362646522,-500.0,0.00024657,8]
[334627793,1723362646531,-500.0,0.00024657,8]
[334627795,1723362646540,-500.0,0.00024657,8]
[334627797,1723362646549,-500.0,0.00024657,8]
[334627799,1723362646558,-500.0,0.00024657,8]
[334627801,1723362646567,-500.0,0.00024657,8]
[334627802,1723362646576,-500.0,0.00024657,8]
[334627804,1723362646585,-500.0,0.00024657,8]
[334627806,1723362646594,-500.0,0.00024657,8]
[334627808,1723362646603,-500.0,0.00024657,8]
[334627810,1723362646613,-500.0,0.00024657,8]
[334627812,1723362646622,-500.0,0.00024657,8]
[334627814,1723362646632,-500.0,0.00024657,8]
[334627816,1723362646642,-500.0,0.00024657,8]
[334627818,1723362646651,-500.0,0.00024657,8]
[334627820,1723362646660,-261.49656855,0.00024657,8]
[334627822,1723362646669,-500.0,0.00024657,8]
[334627824,1723362646678,-219.96239897,0.00024657,8]
[334627826,1723362646688,-834.04,0.00024657,8]
[334627828,1723362646697,-850.61,0.00024657,8]
[334627830,1723362646707,-512.70766578,0.00024657,8]
[334627832,1723362646716,-234.57205473,0.00024657,8]
[334627834,1723362646725,-500.0,0.00024657,8]
[334627836,1723362646734,-500.0,0.00024657,8]
[334627838,1723362646745,-634.4864762,0.00024657,8]
[334627841,1723362646755,-500.0,0.00024657,8]
[334627843,1723362646764,-252.52,0.00024657,7]
[334627845,1723362646774,-422.79339916,0.00024657,8]
[334627846,1723362646783,-167.86611601,0.00024657,8]
[334627848,1723362646793,-3204.46,0.00024657,8]
[334627850,1723362646802,-213.10451864,0.00024657,8]
[334627852,1723362646811,-895.14,0.00024657,8]
[334627854,1723362646820,-500.0,0.00024657,8]
[334627856,1723362646829,-279.39948714,0.00024657,8]
[334627859,1723362646840,-1102.43,0.00024657,8]
[334627861,1723362646849,-539.55016859,0.00024657,8]
[334627863,1723362646859,-342.83821308,0.00024657,8]
[334627864,1723362646868,-500.0,0.00024657,8]
[334627866,1723362646878,-231.42382277,0.00024657,8]
[334627868,1723362646889,-268.18310216,0.00024657,8]
[334627870,1723362646899,-500.0,0.00024657,8]
[334627872,1723362646909,-383.91466669,0.00024657,8]
[334627874,1723362646919,-415.68456121,0.00024657,8]
[334627875,1723362646930,-1000.0,0.00024657,8]
[334627877,1723362646940,-500.0,0.00024657,8]
[334627879,1723362646950,-500.0,0.00024657,8]
[334627881,1723362646960,-500.0,0.00024657,8]
[334627883,1723362646969,-625.85,0.00024657,8]
[334627885,1723362646980,-297.04655933,0.00024657,8]
[334627887,1723362646990,-5370.92,0.00024657,8]
[334627889,1723362646999,-430.59600817,0.00024657,8]
[334627891,1723362647008,-500.0,0.00024657,8]
[334627893,1723362647018,-500.0,0.00024657,8]
[334627895,1723362647027,-566.78587996,0.00024657,8]
[334627897,1723362647037,-1413.55,0.00024657,8]
[334627899,1723362647047,-436.61833335,0.00024657,8]
[334627901,1723362647056,-221.5723709,0.00024657,8]
[334627903,1723362647066,-500.0,0.00024657,8]
[334627905,1723362647075,-500.0,0.00024657,8]
[334627907,1723362647084,-500.0,0.00024657,8]
[334627909,1723362647093,-500.0,0.00024657,8]
[334627911,1723362647102,-500.0,0.00024657,8]
[334627913,1723362647112,-500.0,0.00024657,8]
[334627914,1723362647121,-570.03899387,0.00024657,8]
[334627916,1723362647130,-500.0,0.00024657,8]
[334627918,1723362647139,-240.70892745,0.00024657,8]
[334627920,1723362647148,-500.0,0.00024657,8]
[334627922,1723362647157,-500.0,0.00024657,8]
[334627924,1723362647167,-180.26373879,0.00024657,8]
[334627926,1723362647176,-500.0,0.00024657,8]
[334627928,1723362647187,-418.31923903,0.00024657,8]
[334627930,1723362647203,-515.04134159,0.00024657,8]
[334627932,1723362647211,-5000.0,0.00024657,8]
[334627934,1723362647220,-473.61524171,0.00024657,8]
[334627935,1723362647230,-500.0,0.00024657,8]
[334627937,1723362647240,-500.0,0.00024657,8]
[334627939,1723362647249,-505.54653844,0.00024657,8]
[334627941,1723362647258,-500.0,0.00024657,8]
[334627943,1723362647268,-500.0,0.00024657,8]
[334627945,1723362647279,-510.61860696,0.00024657,8]
[334627947,1723362647290,-500.0,0.00024657,8]
[334627949,1723362647299,-619.66151561,0.00024657,8]
[334627951,1723362647308,-500.0,0.00024657,8]
[334627953,1723362647317,-192.5032656,0.00024657,8]
[334627955,1723362647326,-154.70052765,0.00024657,8]
[334627956,1723362647335,-500.0,0.00024657,8]
[334627958,1723362647344,-238.72607978,0.00024657,8]
[334627959,1723362647353,-500.0,0.00024657,8]
[334627960,1723362647362,-284.13237091,0.00024657,8]
[334627961,1723362647371,-500.0,0.00024657,8]
[334627962,1723362647380,-500.0,0.00024657,8]
[334627963,1723362647389,-484.38872205,0.00024657,8]
[334627964,1723362647400,-504.02004048,0.00024657,8]
[334627965,1723362647410,-500.0,0.00024657,8]
[334627966,1723362647419,-500.0,0.00024657,8]
[334627967,1723362647428,-500.0,0.00024657,8]
[334627968,1723362647438,-500.0,0.00024657,8]
[334627969,1723362647447,-500.0,0.00024657,8]
[334627970,1723362647456,-500.0,0.00024657,8]
[334627972,1723362647465,-500.0,0.00024657,8]
[334627974,1723362647474,-481.25229284,0.00024657,8]
[334627976,1723362647484,-523.88099947,0.00024657,8]
[334627978,1723362647493,-360.20064611,0.00024657,8]
[334627980,1723362647502,-500.0,0.00024657,8]
[334627981,1723362647511,-500.0,0.00024657,8]
[334627984,1723362647520,-500.0,0.00024657,8]
[334627986,1723362647530,-464.22545789,0.00024657,8]
[334627988,1723362647542,-11577.05,0.00024657,8]
[334627990,1723362647552,-500.0,0.00024657,8]
[334627992,1723362647562,-500.0,0.00024657,8]
[334627994,1723362647571,-158.37506984,0.00024657,8]
[334627996,1723362647580,-607.95374297,0.00024657,8]
[334627998,1723362647590,-1333.9,0.00024657,8]
[334628000,1723362647599,-500.0,0.00024657,7]
[334628002,1723362647607,-500.0,0.00024657,8]
[334628004,1723362647616,-500.0,0.00024657,8]
[334628006,1723362647625,-14113.73,0.00024657,8]
[334628008,1723362647635,-242.18344716,0.00024657,8]
[334628010,1723362647646,-264.05221045,0.00024657,8]
[334628012,1723362647656,-500.0,0.00024657,2]
[334628014,1723362647667,-500.0,0.00024657,2]
[334628016,1723362647676,-500.0,0.00024657,2]
[334628018,1723362647688,-500.0,0.00024657,2]
[334628020,1723362647702,-500.0,0.00024657,2]
[334628022,1723362647711,-226.39262936,0.00024657,8]
[334628024,1723362647719,-500.0,0.00024657,2]
[334628026,1723362647728,-500.0,0.00024657,2]
[334628028,1723362647738,-500.0,0.00024657,2]
[334628030,1723362647747,-500.0,0.00024657,2]
[334628032,1723362647756,-500.0,0.00024657,2]
[334628034,1723362647765,-500.0,0.00024657,2]
[334628036,1723362647774,-336.23776474,0.00024657,8]
[334628038,1723362647783,-500.0,0.00024657,2]
[334628040,1723362647793,-500.0,0.00024657,8]
[334628042,1723362647802,-500.0,0.00024657,2]
[334628044,1723362647812,-500.0,0.00024657,2]
[334628046,1723362647821,-500.0,0.00024657,2]
[334628048,1723362647831,-500.0,0.00024657,2]
[334628050,1723362647840,-500.0,0.00024657,2]
[334628052,1723362647850,-500.0,0.00024657,2]
[334628054,1723362647859,-603.56524274,0.00024657,2]
[334628056,1723362647869,-2163.98,0.00024657,8]
[334628058,1723362647878,-424.11829988,0.00024657,8]
[334628060,1723362647888,-500.0,0.00024657,8]
[334628062,1723362647897,-500.0,0.00024657,8]
[334628064,1723362647907,-421.22364524,0.00024657,8]
[334628066,1723362647917,-512.64447081,0.00024657,8]
[334628068,1723362647928,-500.0,0.00024657,8]
[334628070,1723362647939,-599.88165555,0.00024657,8]
[334628072,1723362647948,-183.44643327,0.00024657,8]
[334628074,1723362647957,-500.0,0.00024657,8]
[334628076,1723362647967,-500.0,0.00024657,2]
[334628078,1723362647976,-500.0,0.00024657,8]
[334628080,1723362647985,-508.19,0.00024657,8]
[334628082,1723362647995,-346.85437038,0.00024657,8]
[334628083,1723362648004,-4183.05,0.00024657,8]
[334628085,1723362648013,-306.80773636,0.00024657,8]
[334628087,1723362648022,-100000.0,0.00024657,2]
[334628089,1723362648032,-157.75988724,0.00024657,8]
[334628091,1723362648040,-500.0,0.00024657,8]
[334628093,1723362648049,-500.0,0.00024657,8]
[334628095,1723362648058,-378.22999541,0.00024657,8]
[334628096,1723362648067,-302.23554586,0.00024657,8]
[334628098,1723362648077,-153.21044234,0.00024657,8]
[334628100,1723362648086,-166.21233524,0.00024657,8]
[334628102,1723362648096,-193.17233282,0.00024658,2]
[334628104,1723362648106,-2947.05743262,0.00024697,2]
[334628106,1723362648115,-25000.0,0.000247,2]
[334628108,1723362648125,-66101.59233667,0.000247,7]
[334628110,1723362648134,-4400.0,0.000247,9]
[334628112,1723362648144,-33822.13,0.0002474,2]
[334628114,1723362648154,-1600.0,0.00024748,11]
[334628116,1723362648163,-11730.3813962,0.0002475,2]
[334628118,1723362648173,-83150.0,0.0002478,2]
[334628120,1723362648182,-210.80664233,0.000248,7]
[334628122,1723362648194,-5103.0,0.000248,9]
[334628124,1723362648207,-150.0,0.00024802,2]
[334628126,1723362648216,-1031.76459502,0.00024829,10]
[334628128,1723362648227,-85480.0,0.0002483,3]
[334628130,1723362648237,-103344.54564409,0.0002484,4]
[334628132,1723362648247,-71657.0,0.0002485,4]
[334628134,1723362648257,-59929.3,0.0002486,3]
[334628136,1723362648266,-35949.0,0.0002486,4]
[334628138,1723362648276,-18808.47,0.0002487,4]
[334628140,1723362648286,-1241.28848284,0.00024879,10]
[334628142,1723362648296,-73781.97,0.0002488,2]
[334628144,1723362648305,-217.0,0.000249,8]
[334628146,1723362648315,-1057.92485716,0.000249,2]
[334628148,1723362648325,-379.38526347,0.000249,2]
[334628150,1723362648334,-275.96098267,0.000249,2]
[334628152,1723362648343,-399.92248283,0.000249,2]
[334628154,1723362648353,-155.7,0.000249,31]
[334628156,1723362648362,-155.7,0.000249,31]
[334628158,1723362648372,-155.7,0.000249,31]
[334628160,1723362648381,-155.7,0.000249,31]
[334628162,1723362648391,-155.7,0.000249,31]
[334628164,1723362648400,-155.7,0.000249,31]
[334628166,1723362648410,-155.7,0.000249,31]
[334628168,1723362648420,-155.7,0.000249,31]
[334628170,1723362648429,-155.7,0.000249,31]
[334628171,1723362648440,-164.14081487,0.000249,2]
[334628173,1723362648449,-56365.03101734,0.000249,2]
[334628175,1723362648459,-188.69241533,0.000249,2]
[334628177,1723362648470,-1383.27852745,0.000249,2]
[334628179,1723362648480,-265.93564081,0.000249,2]
[334628181,1723362648489,-25018.37792652,0.000249,2]
[334628183,1723362648499,-125620.0,0.0002493,5]
[334628185,1723362648509,-504.29496708,0.00024931,8]
[334628187,1723362648518,-500.0,0.00024931,8]
[334628189,1723362648527,-190.13269914,0.00024931,8]
[334628191,1723362648536,-1000.0,0.00024931,2]
[334628193,1723362648545,-510.63,0.00024931,8]
[334628195,1723362648554,-796.25,0.00024931,8]
[334628196,1723362648563,-173.14210154,0.00024931,8]
[334628198,1723362648572,-617.63063575,0.00024931,2]
[334628200,1723362648581,-500.0,0.00024931,8]
[334628202,1723362648590,-500.0,0.00024931,2]
[334628204,1723362648599,-500.0,0.00024931,8]
[334628206,1723362648609,-491.877133,0.00024931,2]
[334628208,1723362648617,-500.0,0.00024931,2]
[334628210,1723362648626,-500.0,0.00024931,8]
[334628212,1723362648635,-500.0,0.00024931,8]
[334628214,1723362648644,-2000.0,0.00024931,8]
[334628216,1723362648653,-500.0,0.00024931,2]
[334628217,1723362648662,-500.0,0.00024931,8]
[334628219,1723362648672,-500.0,0.00024931,8]
[334628221,1723362648681,-500.0,0.00024931,8]
[334628223,1723362648691,-500.0,0.00024931,8]
[334628225,1723362648700,-505.38236186,0.00024931,8]
[334628227,1723362648709,-561.58674616,0.00024931,8]
[334628229,1723362648718,-500.0,0.00024931,8]
[334628231,1723362648728,-500.0,0.00024931,8]
[334628233,1723362648737,-500.0,0.00024931,8]
[334628235,1723362648746,-500.0,0.00024931,8]
[334628236,1723362648755,-500.0,0.00024931,8]
[334628238,1723362648765,-20000.0,0.00024931,2]
[334628240,1723362648774,-500.0,0.00024931,8]
[334628242,1723362648783,-500.0,0.00024931,8]
[334628259,1723362648931,-500.0,0.00024931,8]
[334628261,1723362648943,-1757.89,0.00024931,8]
[334628263,1723362648953,-500.0,0.00024931,8]
[334628265,1723362648962,-500.0,0.00024931,8]
[334628267,1723362648971,-500.0,0.00024931,8]
[334628269,1723362648980,-500.0,0.00024931,8]
[334628270,1723362648989,-500.0,0.00024931,8]
[334628273,1723362648999,-500.0,0.00024931,8]
[334628275,1723362649009,-500.0,0.00024931,8]
[334628276,1723362649018,-500.0,0.00024931,8]
[334628278,1723362649027,-500.0,0.00024931,8]
[334628280,1723362649036,-500.0,0.00024931,8]
[334628282,1723362649046,-500.0,0.00024931,8]
[334628284,1723362649055,-500.0,0.00024931,8]
[334628287,1723362649070,-553.29402206,0.00024931,8]
[334628289,1723362649079,-500.0,0.00024931,8]
[334628291,1723362649089,-500.0,0.00024931,8]
[334628293,1723362649098,-500.0,0.00024931,8]
[334628295,1723362649108,-500.0,0.00024931,8]
[334628297,1723362649117,-500.0,0.00024931,8]
[334628299,1723362649127,-500.0,0.00024931,8]
[334628301,1723362649137,-500.0,0.00024931,8]
[334628303,1723362649146,-1290.93,0.00024931,8]
[334628305,1723362649155,-500.0,0.00024931,8]
[334628307,1723362649164,-500.0,0.00024931,8]
[334628309,1723362649173,-500.0,0.00024931,8]
[334628311,1723362649182,-500.0,0.00024931,8]
[334628313,1723362649193,-2857.13,0.00024931,8]
[334628315,1723362649206,-500.0,0.00024931,8]
[334628317,1723362649215,-500.0,0.00024931,8]
[334628318,1723362649224,-500.0,0.00024931,8]
[334628320,1723362649234,-500.0,0.00024931,8]